Cogmind - Beta 17 @@@ ROGUE MODE // 2026.08.02 @ 15:15:20 Player: naththebg Result: Destroyed by Y-45 Defender with Beam Rifle Performance ------------- Evolutions (2) 1000 Regions Visited (8) 1600 Robots Destroyed (172) 860 Value Destroyed (6915) 6915 Prototype IDs (26) 520 Alien Tech Used (0) 0 Bonus (1905) 1905 TOTAL SCORE: 12800 Bonus ------- High Alert Combat Kills 1189 Follower Combat Kills 364 Entered Garrisons 400 Friendly Fire -48 Cogmind --------- Core Integrity 0/550 Matter 300/300 Energy 125/125 System Corruption 2% Temperature Cool (9) Movement Treading (165) Location -8/Materials Parts ------- > --- POWER (1) -------- Light Ion Engine > --- PROPULSION (3) --- Armored Treads Medium Treads > --- UTILITY (4) ------ Large Storage Unit Improved Sensor Array Improved Signal Interpreter Improved Medium Armor Plating > --- WEAPON (3) ------- Gauss Rifle Gauss Rifle Assault Cannon > --- INVENTORY (15) --- Maxwheels Improved Medium Armor Plating System Shield Heavy Particle Gun Heavy Particle Gun Heavy Particle Gun Precision Beam Rifle Peak State ------------ > --- POWER ------------ Micro Nuclear Core > --- PROPULSION ------- Medium Treads Medium Treads Medium Treads > --- UTILITY ---------- Advanced Heat Sink Medium Storage Unit Medium Insulated Plating Medium Insulated Plating > --- WEAPON ----------- Minigun Enhanced Autogun Assault Cannon > --- INVENTORY -------- Cooled Ion Engine Light Treads Medium Treads Maxwheels Improved Shield Generator Subdweller Beam Cannon Subdweller Shrapnel Launcher [Rating: 44] Favorites ----------- Power Micro Nuclear Core Engine Ion Engine Power Core Micro Nuclear Core Propulsion Medium Treads Treads Medium Treads Leg Aluminum Leg Utility Medium Storage Unit Device Improved Heat Sink Storage Medium Storage Unit Processor Improved Signal Interpreter Hackware Authchip [Power] Protection Hardened Medium Armor Plating Weapon Battle Cannon Energy Gun Heavy Particle Gun Energy Cannon Beam Cannon Ballistic Gun Gauss Rifle Ballistic Cannon Battle Cannon Launcher Subdweller Shrapnel Launcher Build | -11 -10 -10 -10 -8 -8 -8 -8 -8 ------- Run | Yrd Mat Min Sub Mat Gar Mat Gar Mat Slots Evolved 4 | . . . . 4 . . . . Power . | . . . . . . . . . Propulsion 1 | . . . . 1 . . . . Utility 2 | . . . . 2 . . . . Weapon 1 | . . . . 1 . . . . Parts Attached 90 | 4 6 7 13 23 9 19 6 3 Power 10 | 1 . 1 3 1 . 3 . 1 Engine 8 | 1 . 1 3 . . 2 . 1 Core 2 | . . . . 1 . 1 . . Reactor . | . . . . . . . . . Propulsion 18 | 2 . 2 2 7 . 3 2 . Treads 15 | . . 2 2 6 . 3 2 . Leg 3 | 2 . . . 1 . . . . Wheel . | . . . . . . . . . Hover . | . . . . . . . . . Flight . | . . . . . . . . . Utility 35 | 1 2 1 4 10 6 7 2 2 Device 12 | . 1 1 2 2 3 2 . 1 Storage 4 | 1 1 . . 1 . 1 . . Processor 1 | . . . . . . . . 1 Hackware 1 | . . . . 1 . . . . Protection 17 | . . . 2 6 3 4 2 . Artifact . | . . . . . . . . . Weapon 27 | . 4 3 4 5 3 6 2 . Energy Gun 12 | . 3 . . 1 1 6 1 . Energy Cannon 2 | . . 1 1 . . . . . Ballistic Gun 7 | . 1 . . 3 2 . 1 . Ballistic Cannon 4 | . . 1 2 1 . . . . Launcher 2 | . . 1 1 . . . . . Special Weapon . | . . . . . . . . . Impact Weapon . | . . . . . . . . . Slashing Weapon . | . . . . . . . . . Piercing Weapon . | . . . . . . . . . Special Melee Weapon . | . . . . . . . . . Unidentified Prototypes 5 | . . . 1 1 . 3 . . Corrupted Parts 1 | . 1 . . . . . . . System Corruption 1 | . 1 . . . . . . . Parts Lost 32 | . . 4 5 4 3 7 9 . Power 4 | . . . 1 . . 2 1 . Propulsion 9 | . . 1 2 2 . 1 3 . Utility 13 | . . 1 2 2 2 2 4 . Weapon 6 | . . 2 . . 1 2 1 . Highest Loss Streak 9 | . . 3 4 2 1 3 9 . To Critical Strikes . | . . . . . . . . . Average Backups 8 | 4 8 7 8 6 6 10 10 6 Power . | . 1 1 . 1 1 . . . Propulsion 2 | 2 4 4 1 1 3 3 2 1 Utility 2 | . . 1 2 . . 4 3 1 Weapon 2 | 1 2 1 4 2 2 2 4 4 Tool/Special . | . . . . . . . . . Unused Backups 14 | . 2 . 4 4 . 1 1 2 Power 3 | . . . . 3 . . . . Propulsion 5 | . 1 . 1 1 . 1 . 1 Utility 3 | . . . 1 . . . 1 1 Weapon 3 | . 1 . 2 . . . . . Tool/Special . | . . . . . . . . . Average Slot Usage (%) 97 | . 86 99 99 97 99 95 95 80 Engine 7 | . 14 14 14 . . 6 7 2 Core 3 | . . . . 8 9 2 . . Treads 25 | . . 23 27 23 27 26 25 18 Leg 1 | . 28 3 . 2 . . . . Device 8 | . 1 13 1 8 9 12 14 6 Storage 10 | . 14 14 14 9 9 9 9 9 Protection 11 | . . . 11 16 18 11 10 11 Energy Gun 5 | . 15 3 . 3 . 12 24 6 Energy Cannon 3 | . . 11 5 3 . . . . Ballistic Gun 7 | . 12 . . 6 18 14 2 18 Ballistic Cannon 10 | . . 11 21 13 8 . . 2 Peak Build Rating 44 | 4 8 10 20 42 44 44 43 36 Average Rating 27 | 2 6 9 11 33 41 41 39 34 On Entrance 21 | . 4 8 10 14 42 43 43 33 Avg Prop Armor Cover (%) 4 | . . . . 4 . . . . Naked Turns . | . . . . . . . . . Heaviest Build 57 | 10 20 22 29 50 46 57 52 45 Greatest Support 84 | 20 20 40 40 84 84 84 68 48 Greatest Overweight (x) 1 | . . 1 . 1 . . . . Average Overweight (x) . | . . . . . . . . . Largest Inventory Capacity 15 | 8 10 10 10 10 10 15 15 15 Average Capacity 11 | 6 8 10 10 10 10 14 15 15 Most Carried 15 | 8 10 10 10 10 10 15 15 10 Average Carried 10 | 5 8 7 9 9 9 13 13 9 Final Capacity 15 | 8 10 10 10 10 10 15 15 15 Final Carried 15 | 8 10 8 10 10 10 15 9 10 Class Distribution -------------------- 34% | Tank 29% | Mutant 13% | Scavenger-Mutant 10% | Commander-Tank 8% | Scavenger-Tank Dominant Class ---------------- Mutant | -10/Materials Scavenger-Mutant | -10/Mines Mutant | -10/Subcaves Tank | -8/Materials Commander-Tank | -8/Garrison Tank | -8/Materials Scavenger-Tank | -8/Garrison Skirmisher | -8/Materials Resources | -11 -10 -10 -10 -8 -8 -8 -8 -8 ----------- Run | Yrd Mat Min Sub Mat Gar Mat Gar Mat Matter Collected 4413 | 198 106 158 490 1136 931 1170 115 109 Remotely . | . . . . . . . . . Salvage Created 5737 | . 155 257 445 1306 832 1848 788 106 Parts 344 | . 14 25 28 74 51 103 45 4 Haulers Intercepted 10 | . 1 . . 4 . 5 . . Recyclers Shooed 5 | . 1 . . . . 4 . . Parts Field Recycled . | . . . . . . . . . Retrieved Matter . | . . . . . . . . . Parts Self-Destructed 7 | . . . 7 . . . . . Prevented . | . . . . . . . . . Parts Restored . | . . . . . . . . . Kills | -11 -10 -10 -10 -8 -8 -8 -8 -8 ------- Run | Yrd Mat Min Sub Mat Gar Mat Gar Mat Combat Hostiles Destroyed 135 | . 2 15 16 24 27 32 19 . Guns 77 | . 2 7 . 6 17 26 19 . Cannons 43 | . . 2 12 18 10 1 . . AOE 15 | . . 6 4 . . 5 . . Classes Destroyed 19 | . 3 1 4 5 1 4 1 . Worker 4 | . . . . 3 . 1 . . Builder 6 | . . . . 2 . 3 . 1 Tunneler 1 | . . . . . . 1 . . Hauler 10 | . 1 . . 4 . 5 . . Recycler 4 | . . . . 1 . 2 . 1 Operator 2 | . 1 . . 1 . . . . Turret 2 | . . . 2 . . . . . Watcher 8 | . . . . 5 . 3 . . Swarmer 33 | . . 12 4 . 10 2 5 . Grunt 54 | . 2 3 2 17 11 16 3 . Brawler 3 | . . . . 1 . 2 . . Protector 1 | . . . . . . 1 . . Sentry 26 | . . . 1 6 5 7 7 . Specialist 3 | . . . . . 1 2 . . Hunter 3 | . . . . . . 1 2 . Programmer 2 | . . . . . . . 2 . Heavy 1 | . . . . . . 1 . . Artisan 1 | . . . 1 . . . . . Subdweller 9 | . . . 9 . . . . . Best Kill Streak 8 | . 2 3 4 7 5 8 6 1 Combat Bots Only 7 | . 1 3 4 4 5 7 6 . Max Kills in Single Turn 4 | . 1 3 4 2 1 3 2 1 Gunslinging 1 | . . . . . . 1 1 . Exploded 4 | . . 3 4 . . 2 . . Melee . | . . . . . . . . . Uniques/NPCs Destroyed . | . . . . . . . . . Combat | -11 -10 -10 -10 -8 -8 -8 -8 -8 -------- Run | Yrd Mat Min Sub Mat Gar Mat Gar Mat Hostile Shots Fired 659 | . 10 67 64 111 75 140 191 1 Missed 164 | . 3 16 19 28 15 42 41 . Hits 495 | . 7 51 45 83 60 98 150 1 Melee 1 | . . . . . . 1 . . Projectile 494 | . 7 51 45 83 60 97 150 1 AOE 1 | . . . 1 . . . . . Critical Strikes 16 | . . 1 . 3 5 3 4 . Damage Taken 7270 | . 79 591 871 1269 773 1763 1910 14 Core 694 | . 22 89 30 164 64 179 132 14 Absorbed by Shields . | . . . . . . . . . Ignored by Resistances 75 | . . . 27 17 31 . . . Core Remaining (%) 71 | 100 . . 43 . . . . . Volleys Fired 445 | . 16 32 61 107 86 90 46 7 Largest 3 | . 2 2 2 3 3 3 3 3 Hottest 173 | . 60 100 113 173 127 165 165 93 Shots Fired 1038 | . 32 57 113 241 200 251 130 14 Gun 650 | . 32 46 . 65 127 240 130 10 Cannon 371 | . . 6 107 176 73 5 . 4 Launcher 17 | . . 5 6 . . 6 . . Special . | . . . . . . . . . Kinetic 703 | . 16 3 86 203 196 172 13 14 Thermal 314 | . . 49 27 38 4 79 117 . Explosive 5 | . . 5 . . . . . . Electromagnetic 16 | . 16 . . . . . . . Robot Hit Streak 23 | . 4 8 23 10 15 13 10 5 Robot Miss Streak 9 | . 5 4 2 4 9 4 4 2 Penetration Max 1 | . . . . . . 1 . . Secondary Targets 17 | . . 2 . . . 7 8 . Max Gunslinging Chain 2 | . . 1 . . . 2 1 . Shots Hit Robots 585 | . 14 31 56 140 102 163 75 4 Core Hits 271 | . 9 18 29 59 44 79 30 3 Critical Kills 1 | . . . . . . 1 . . Critical Parts Destroyed 3 | . . . . . . 3 . . Critical Strikes 23 | . . 2 1 7 1 10 2 . Burn 10 | . . 2 . . . 6 2 . Destroy 4 | . . . . . . 4 . . Blast 9 | . . . 1 7 1 . . . Melee Attacks . | . . . . . . . . . Impact . | . . . . . . . . . Slashing . | . . . . . . . . . Piercing . | . . . . . . . . . Sneak Attacks . | . . . . . . . . . Combat Hostiles . | . . . . . . . . . Follow-up Attacks . | . . . . . . . . . Damage Inflicted 13975 | . 177 717 1460 3494 1995 4437 1613 82 Guns 7437 | . 160 364 . 880 1181 3210 1606 36 Cannons 4603 | . . 54 1032 2563 814 94 . 46 Explosions 1823 | . . 265 428 . . 1130 . . Melee . | . . . . . . . . . Ramming 112 | . 17 34 . 51 . 3 7 . Kinetic 9631 | . 65 37 1039 2727 1978 3501 202 82 Thermal 3872 | . . 381 421 716 17 933 1404 . Explosive 265 | . . 265 . . . . . . Electromagnetic 95 | . 95 . . . . . . . Impact . | . . . . . . . . . Slashing . | . . . . . . . . . Piercing . | . . . . . . . . . Highest Corruption 2 | . 1 1 1 . . 1 2 2 Average Corruption 1 | . 1 1 1 . . 1 1 2 Corruption Purged . | . . . . . . . . . Corruption Blocked . | . . . . . . . . . Effects 41 | . . 9 12 . . 8 10 2 Message Errors 6 | . . 1 1 . . 2 1 1 Matter Fused 11 | . . 4 3 . . 2 1 1 Heat Flow Errors 3 | . . . . . . 2 1 . Energy Discharges 2 | . . 1 1 . . . . . Parts Rejected 1 | . . 1 . . . . . . Data Loss (minor) 4 | . . 1 2 . . . 1 . Data Loss (major) 2 | . . . . . . 1 1 . Misfires 7 | . . . 5 . . 1 1 . Alerts 2 | . . . . . . . 2 . Weapon Failures 3 | . . 1 . . . . 2 . Overload Shots . | . . . . . . . . . Overflow Damage 144 | . . 38 27 46 5 28 . . Projectiles 65 | . . . 14 46 5 . . . Explosions 79 | . . 38 13 . . 28 . . Melee . | . . . . . . . . . Knockbacks 36 | . . 1 8 19 8 . . . Impact . | . . . . . . . . . Kinetic 35 | . . 1 7 19 8 . . . Secondary 1 | . . . 1 . . . . . Self-Inflicted Damage 212 | . . 69 95 . . 48 . . Shots 6 | . . 3 2 . . 1 . . Rammed 18 | . . 6 . 9 . 2 1 . Targets Rammed 24 | . 5 6 . 10 . 2 1 . Kicked 5 | . 5 . . . . . . . Crushed 1 | . . . . 1 . . . . Highest Temperature 418 | . 78 165 12 348 135 195 418 21 Average Temperature 70 | . 36 37 5 108 31 39 124 14 Received Heat Transfer 2547 | . 42 153 138 729 360 621 495 9 Effects 3 | . . . . 1 . . 2 . Energy Bleed 1 | . . . . . . . 1 . Interference 1 | . . . . 1 . . . . Damage (minor) 1 | . . . . . . . 1 . Siege Activations . | . . . . . . . . . Martial Activations . | . . . . . . . . . Shielding Activations . | . . . . . . . . . Robots Disrupted . | . . . . . . . . . Combat Hostiles . | . . . . . . . . . Robots Corrupted . | . . . . . . . . . Combat Hostiles . | . . . . . . . . . Parts Fried . | . . . . . . . . . Impact Corruptions . | . . . . . . . . . Robots Melted . | . . . . . . . . . Combat Hostiles . | . . . . . . . . . Parts Melted 16 | . . . 1 . . 8 7 . Heat Transferred 8022 | . . 1258 740 892 37 2358 2737 . Parts Sabotaged . | . . . . . . . . . Parts Stolen . | . . . . . . . . . Parts Stripped . | . . . . . . . . . Power Chain Reactions . | . . . . . . . . . Alert | -11 -10 -10 -10 -8 -8 -8 -8 -8 ------- Run | Yrd Mat Min Sub Mat Gar Mat Gar Mat Maximum Alert Level 4 | . . . . 1 4 3 4 2 Low Security (%) 42 | 100 100 100 . 82 10 . . . Level 1 6 | . . . . 17 8 . . . Level 2 21 | . . . . . 31 52 11 100 Level 3 22 | . . . . . 22 47 77 . Level 4 7 | . . . . . 26 . 10 . Level 5 . | . . . . . . . . . High Security . | . . . . . . . . . Max Security . | . . . . . . . . . Peak Influence 1472 | . 30 176 . 348 1472 1009 1106 538 Initial 717 | . . . . 63 77 717 631 538 Average 456 | . 6 67 . 102 738 763 874 492 Influence Increases 4866 | . 67 433 280 931 1525 1053 565 12 Destroy 0b10 Robot/C 2820 | . 40 300 180 480 820 620 380 . Destroy 0b10 Robot/NC 185 | . 10 . . 80 . 85 . 10 Destroy Leader 408 | . 12 50 10 128 20 168 20 . Allied During Kill 183 | . . . . . 159 24 . . Successful Hack 74 | . 5 . . 38 16 15 . . Disable Machine 210 | . . 45 . 90 . 75 . . Anti-Garrison Action 550 | . . . . . 400 . 150 . Destroy Structure 196 | . . 23 . 40 65 66 . 2 Partial Spotted 15 | . . . . 15 . . . . Lose Combat Pursuer 225 | . . 15 90 60 45 . 15 . Influence Decreases 4416 | . 67 433 158 934 172 1553 431 668 Entered New Map 1765 | . . . . 59 42 755 341 568 Time Decay 1771 | . 67 393 158 535 . 518 . 100 Lost Part 270 | . . 40 . 40 30 70 90 . Lost Ally 160 | . . . . . 100 60 . . Purge Threat 450 | . . . . 300 . 150 . . Squads Dispatched 13 | . 1 . . 4 . 8 . . Investigation . | . . . . . . . . . Extermination . | . . . . . . . . . Reinforcement 7 | . 1 . . 3 . 3 . . Assault 1 | . . . . . . 1 . . Garrison 5 | . . . . 1 . 4 . . Intercept . | . . . . . . . . . Searches Triggered . | . . . . . . . . . Construction Impeded . | . . . . . . . . . Haulers Reinforced . | . . . . . . . . . Active Scanning Responses . | . . . . . . . . . Cargo Convoy Interrupts . | . . . . . . . . . Stealth | -11 -10 -10 -10 -8 -8 -8 -8 -8 --------- Run | Yrd Mat Min Sub Mat Gar Mat Gar Mat Distress Signals 5 | . . . . 1 . 4 . . Communications Jammed . | . . . . . . . . . Distress Signals . | . . . . . . . . . Times Spotted 185 | . 8 15 19 42 40 38 22 1 Peak Tracking Total 8 | . 4 3 5 4 4 8 8 1 Tactical Retreats 10 | . . 1 2 4 2 . 1 . Traps | -11 -10 -10 -10 -8 -8 -8 -8 -8 ------- Run | Yrd Mat Min Sub Mat Gar Mat Gar Mat Traps Triggered 1 | . . . . . 1 . . . Indirectly . | . . . . . . . . . Trap Hack Attempts . | . . . . . . . . . Triggered . | . . . . . . . . . Disarmed . | . . . . . . . . . Reprogrammed . | . . . . . . . . . Reused . | . . . . . . . . . Traps Extracted . | . . . . . . . . . Installed . | . . . . . . . . . Triggered . | . . . . . . . . . Machines | -11 -10 -10 -10 -8 -8 -8 -8 -8 ---------- Run | Yrd Mat Min Sub Mat Gar Mat Gar Mat Machines Disabled 25 | . . 3 4 6 4 5 3 . Max in Single Turn 3 | . . 3 3 1 1 2 1 . Garrison Relay 7 | . . . . . 4 . 3 . Machines Repaired . | . . . . . . . . . Machines Dismantled . | . . . . . . . . . Machines Sabotaged . | . . . . . . . . . Overloaded Fab Kills . | . . . . . . . . . Hacking | -11 -10 -10 -10 -8 -8 -8 -8 -8 --------- Run | Yrd Mat Min Sub Mat Gar Mat Gar Mat Machines Accessed 28 | . 2 2 2 11 3 6 . 2 Terminals 16 | . 1 1 . 6 3 4 . 1 Fabricators . | . . . . . . . . . Repair Stations . | . . . . . . . . . Recycling Units 4 | . 1 . . 2 . 1 . . Scanalyzers 3 | . . . . 2 . . . 1 Garrison Access 2 | . . . . 1 . 1 . . Total Hacks 72 | . 4 4 5 32 8 13 . 6 Successful 34 | . 1 2 5 18 1 7 . . Failed 37 | . 3 2 . 13 7 6 . 6 Catastrophic 5 | . . . . 2 1 1 . 1 Database Lockouts 1 | . . . . 1 . . . . Manual 26 | . . 3 1 11 1 5 . 5 Terminals 50 | . 2 3 . 22 8 10 . 5 Fabricators . | . . . . . . . . . Repair Stations . | . . . . . . . . . Recycling Units 7 | . 2 . . 4 . 1 . . Scanalyzers 5 | . . . . 4 . . . 1 Garrison Access 4 | . . . . 2 . 2 . . Terminal Hacks 21 | . 1 2 5 9 1 3 . . Record 4 | . . . 4 . . . . . Robot Analysis 1 | . . . . 1 . . . . Prototype ID Bank 3 | . . 1 . 2 . . . . Open Door 1 | . . 1 . . . . . . Branch Access Points 1 | . . . . 1 . . . . Emergency Access Points 1 | . . . . 1 . . . . Terminal Index 1 | . . . . 1 . . . . Alert Level 3 | . . . . 1 . 2 . . Unreport Threat 3 | . . . . 2 . 1 . . Zone Layout 1 | . 1 . . . . . . . Security Stations 1 | . . . . . 1 . . . Proto ID Catalog 1 | . . . 1 . . . . . Fabricator Hacks . | . . . . . . . . . Repair Station Hacks . | . . . . . . . . . Recycling Unit Hacks 4 | . . . . 3 . 1 . . Process 1 | . . . . 1 . . . . Report Inventory 1 | . . . . 1 . . . . Retrieve Matter 1 | . . . . 1 . . . . Retrieve Components 1 | . . . . . . 1 . . Scanalyzer 3 | . . . . 3 . . . . Retrieve Study 3 | . . . . 3 . . . . Garrison Access Hacks 2 | . . . . 1 . 1 . . Unlock Access 2 | . . . . 1 . 1 . . Unauthorized Hacks 4 | . . . . 2 . 2 . . Terminals 4 | . . . . 2 . 2 . . Botnet 4 | . . . . 2 . 2 . . Fabricators . | . . . . . . . . . Repair Stations . | . . . . . . . . . Recycling Units . | . . . . . . . . . Scanalyzers . | . . . . . . . . . Garrison Access . | . . . . . . . . . Data Cores Recovered . | . . . . . . . . . Used . | . . . . . . . . . Hacking Detections 19 | . 1 1 . 8 3 4 . 2 Full Trace Events 5 | . . 1 . 1 2 1 . . Feedback Events 1 | . . . . . . 1 . . Corruption 1 | . . . . . . 1 . . Feedback Blocked . | . . . . . . . . . Robot Schematics Acquired . | . . . . . . . . . Robots Built . | . . . . . . . . . Authchips . | . . . . . . . . . Time . | . . . . . . . . . Total Robot Build Rating . | . . . . . . . . . Part Schematics Acquired . | . . . . . . . . . Parts Built . | . . . . . . . . . Authchips . | . . . . . . . . . Time . | . . . . . . . . . Total Part Build Rating . | . . . . . . . . . Part Studies Acquired 3 | . . . . 3 . . . . Parts Repaired . | . . . . . . . . . Time . | . . . . . . . . . Parts Recycled . | . . . . . . . . . Recycled Matter 235 | . . . . 235 . . . . Retrieved Matter 235 | . . . . 235 . . . . Retrieved Components 10 | . . . . . . 10 . . Parts Scanalyzed . | . . . . . . . . . Part Schematics Acquired . | . . . . . . . . . Parts Damaged . | . . . . . . . . . Bothacking | -11 -10 -10 -10 -8 -8 -8 -8 -8 ------------ Run | Yrd Mat Min Sub Mat Gar Mat Gar Mat Used RIF Installer . | . . . . . . . . . Robots Hacked . | . . . . . . . . . Non-combat . | . . . . . . . . . Combat . | . . . . . . . . . Robot Hacks Applied . | . . . . . . . . . Relay Couplers Released 33 | . . . . . 19 . 14 . Machine Destruction 33 | . . . . . 19 . 14 . Fabnet Peak Effective % . | . . . . . . . . . Robots Rewired 9 | . . . . . 9 . . . Allies Hacked . | . . . . . . . . . Hacks Repelled . | . . . . . . . . . Allies | -11 -10 -10 -10 -8 -8 -8 -8 -8 -------- Run | Yrd Mat Min Sub Mat Gar Mat Gar Mat Total Allies 9 | . . . . . 9 . . . Largest Group 7 | . . . . . 7 3 . . Highest-Rated Group 122 | . . . . . 122 54 . . Highest-Rated Ally 24 | . . . . . 24 24 . . Initial Warlord ECA Mod 9 | . . . . . . 6 6 9 Total Orders . | . . . . . . . . . Ally Attacks 85 | . . . . . 76 9 . . Total Damage 1487 | . . . . . 1276 211 . . Kills 16 | . . . . . 15 1 . . Allies Corrupted . | . . . . . . . . . Allies Melted . | . . . . . . . . . Intel | -11 -10 -10 -10 -8 -8 -8 -8 -8 ------- Run | Yrd Mat Min Sub Mat Gar Mat Gar Mat Active Infowar (turns) 297 | . . . 143 . . . . 154 Optics 143 | . . . 143 . . . . . Sensors 154 | . . . . . . . . 154 Robot Analysis Total 1 | . . . . 1 . . . . Derelict Logs Recovered 4 | . . 2 2 . . . . . Drone Launches . | . . . . . . . . . Drone Recoveries . | . . . . . . . . . Exploration | -11 -10 -10 -10 -8 -8 -8 -8 -8 ------------- Run | Yrd Mat Min Sub Mat Gar Mat Gar Mat Turns Passed 9451 | 48 308 1087 2217 1780 1641 1437 723 210 Spaces Moved 4687 | 36 198 610 1212 789 777 629 332 104 Core 13 | 13 . . . . . . . . Treads 4401 | . . 558 1212 789 777 629 332 104 Legs 273 | 23 198 52 . . . . . . Wheels . | . . . . . . . . . Hover . | . . . . . . . . . Flight . | . . . . . . . . . Fastest Speed 50 | 50 120 120 160 160 160 160 165 165 Average Speed 159 | 94 120 156 160 167 160 163 165 165 Slowest Speed 225 | 120 120 190 160 225 160 166 166 165 Overloaded Moves . | . . . . . . . . . Propulsion Burnouts . | . . . . . . . . . Robots Hopped . | . . . . . . . . . Potential Cave-ins . | . . . . . . . . . Cave-ins Triggered . | . . . . . . . . . Exploration Rate (%) 50 | 3 33 99 92 74 68 40 37 8 Regions Visited 8 Branch Regions 2 Pre-discovered Areas . | . . . . . . . . . Known Exits Taken 2 | . . . . 1 . 1 . . Unknown Exits Taken 4 | 1 1 1 1 . . . . . Scrap Searched 6 | . . 1 5 . . . . . Spaces Dug 11 | . . . 5 5 . . . 1 Terrain Destroyed 217 | . . 23 73 39 . 80 . 2 Melee . | . . . . . . . . . Projectile 47 | . . . 5 39 . 1 . 2 AOE 170 | . . 23 68 . . 79 . . Terrain Rammed . | . . . . . . . . . Walls Destroyed . | . . . . . . . . . Machines Disabled . | . . . . . . . . . Actions | -11 -10 -10 -10 -8 -8 -8 -8 -8 --------- Run | Yrd Mat Min Sub Mat Gar Mat Gar Mat Total 5825 | 48 238 676 1380 1050 1049 854 402 128 Wait 333 | . 4 14 71 90 68 62 12 12 Move 4681 | 35 197 609 1211 789 776 629 331 104 Hop . | . . . . . . . . . Pick Up 57 | 9 6 2 9 10 1 18 1 1 Fast Attach 39 | 3 3 2 3 11 6 8 1 2 Attach 29 | 1 2 3 3 3 1 10 6 . Detach 5 | . . . . 1 1 3 . . Swap 53 | . 1 6 12 11 3 16 2 2 Drop 56 | . 4 2 10 18 4 16 2 . Fire 445 | . 16 32 61 107 86 90 46 7 Melee . | . . . . . . . . . Ram . | . . . . . . . . . Kick 5 | . 5 . . . . . . . Crush 19 | . . 6 . 10 . 2 1 . Escape Stasis . | . . . . . . . . . Rewire 103 | . . . . . 103 . . . Trap . | . . . . . . . . . Miscellaneous . | . . . . . . . . . Route ------- -11/Scrapyard -10/Materials (discovered 2 exits: [*Mat] / *Min) -10/Mines (discovered 4 exits: [*Mat x2] / [*Exi] / *Sub) -10/Subcaves (discovered 3 exits: *Mat x2 / [*Rec]) -8/Materials -8/Garrison (discovered 3 exits: *Mat x3) -8/Materials (discovered 2 exits: [*Fac] / Gar) -8/Garrison (discovered 2 exits: *Mat x2) -8/Materials History --------- Turn | Location | Event 11 | -11/Scrapyard | Discovered new exit (range 14) 49 | -11/Scrapyard | Entered Materials 158 | -10/Materials | Discovered new exit (range 8) 334 | -10/Materials | Discovered new exit (range 15) 350 | -10/Materials | Build established: Mutant 357 | -10/Materials | Entered Mines 528 | -10/Mines | Lost 3 parts (1n2w) 793 | -10/Mines | Discovered new exit (range 5) 794 | -10/Mines | Build established: Scavenger-Mutant 915 | -10/Mines | A weapon hastily lodged in a ceiling crevice suddenly fell to the ground 931 | -10/Mines | Learned Materials stockpile data 934 | -10/Mines | Learned 2 Materials zone layouts 955 | -10/Mines | Deemed a non-threat by the Exiles lab entrance 955 | -10/Mines | Discovered new exit (range 5) 1021 | -10/Mines | Met a Derelict who couldn't figure out how to use a Trap Extractor 1193 | -10/Mines | Discovered new exit (range 5) 1438 | -10/Mines | Discovered new exit (range 5) 1444 | -10/Mines | Entered Subcaves 1761 | -10/Subcaves | Disturbed a concealed Subdweller 1824 | -10/Subcaves | Lost 4 parts (1p2n1u) 2052 | -10/Subcaves | Disturbed a concealed Subdweller 2075 | -10/Subcaves | Build established: Mutant 2169 | -10/Subcaves | Discovered new exit (range 7) 2331 | -10/Subcaves | Learned Materials trap positions 2756 | -10/Subcaves | Core integrity fell below 50% 2758 | -10/Subcaves | Ambushed by Subdweller buried in earth 3054 | -10/Subcaves | Discovered new exit (range 16) 3193 | -10/Subcaves | Visited 4L-MR0's lab 3201 | -10/Subcaves | Found Prototype Device 3201 | -10/Subcaves | Identified Sfc. Transmogrifier 3225 | -10/Subcaves | Found Maxwheels 3299 | -10/Subcaves | Discovered new exit (range 3) 3451 | -10/Subcaves | Visited Clippyterm 3456 | -10/Subcaves | Learned Research machine intel 3456 | -10/Subcaves | Learned Factory garrison access intel 3661 | -10/Subcaves | Entered Materials 3661 | -8/Materials | Evolved 4 slots: Propulsion x1, Utility x2, Weapon x1 3663 | -8/Materials | Loaded intel: 7 trap records 3963 | -8/Materials | Build established: Tank 5125 | -8/Materials | Central database locked down 5428 | -8/Materials | Garrison activated, responded to threat 5441 | -8/Materials | Identified exit to Garrison 5441 | -8/Materials | Entered Garrison 5449 | -8/Garrison | Triggered checkpoint 5500 | -8/Garrison | Garrison Relay disabled 6005 | -8/Garrison | Triggered checkpoint 6202 | -8/Garrison | Build established: Commander-Tank 6215 | -8/Garrison | Triggered checkpoint 6241 | -8/Garrison | Triggered checkpoint 6351 | -8/Garrison | Garrison Relay disabled 6478 | -8/Garrison | Discovered new exit (range 12) 6579 | -8/Garrison | Triggered checkpoint 6639 | -8/Garrison | Triggered checkpoint 6664 | -8/Garrison | Garrison Relay disabled 6710 | -8/Garrison | Discovered new exit (range 9) 6863 | -8/Garrison | Triggered checkpoint 6956 | -8/Garrison | Learned Materials security intel 6988 | -8/Garrison | Garrison Relay disabled 7043 | -8/Garrison | Discovered new exit (range 13) 7082 | -8/Garrison | Entered Materials 7082 | -8/Materials | Accompanied by 3 allies 7251 | -8/Materials | Build established: Tank 7407 | -8/Materials | Discovered new exit (range 11) 7449 | -8/Materials | Lost 3 allies 7643 | -8/Materials | Core integrity fell below 50% 7877 | -8/Materials | Garrison activated, responded to threat 7882 | -8/Materials | First assault squad dispatched 7978 | -8/Materials | Garrison activated, responded to threat 8012 | -8/Materials | Lost 3 parts (1n1u1w) 8032 | -8/Materials | Destroyed 7 combat bots 8519 | -8/Materials | Identified exit to Garrison 8519 | -8/Materials | Entered Garrison 8585 | -8/Garrison | Triggered checkpoint 8632 | -8/Garrison | Discovered new exit (range 5) 8725 | -8/Garrison | Triggered checkpoint 8761 | -8/Garrison | Garrison Relay disabled 8784 | -8/Garrison | Garrison Relay disabled 8861 | -8/Garrison | Triggered checkpoint 8868 | -8/Garrison | Core integrity fell below 20% 8930 | -8/Garrison | Build established: Scavenger-Tank 8931 | -8/Garrison | Triggered checkpoint 8956 | -8/Garrison | Garrison Relay disabled 8984 | -8/Garrison | Discovered new exit (range 9) 9187 | -8/Garrison | Lost 9 parts (1p3n4u1w) 9242 | -8/Garrison | Entered Materials 9452 | -8/Materials | Destroyed by Y-45 Defender with Beam Rifle Last Messages --------------- 09334_ Connecting with Terminal... 09338_ K-01 Serf collects debris. 09396_ U-05 Engineer destroyed. 09401_ K-01 Serf collects debris. 09402_ Acquired 20 matter. 09405_ K-01 Serf collects debris. 09405_ Acquired Lgt. Ion Engine. 09408_ K-01 Serf collects debris. 09419_ Slug penetrates Wall. 09423_ R-06 Scavenger collects Terrain Scan Processor. 09425_ U-05 Engineer builds a Wall. 09428_ R-06 Scavenger collects Wheel. 09428_ R-06 Scavenger destroyed. 09428_ Slug penetrates Wall. 09429_ MF2/QEO DQRIN